[Event "Titled Tuesday Blitz March 29 Early 2022"]
[White "Perez Ponsa, Federico"]
[Black "Le, Tuan Minh"]
[WhiteFideId "117927"]
[BlackFideId "12401153"]
[WhiteElo "2672"]
[BlackElo "2450"]
[Result "0-1"]
[Round "08"]
[TimeControl "180+1"]
[Date "2022.03.29"]
[WhiteClock "0:00:05"]
[BlackClock "0:00:09"]

1. d4 {[%clk 0:03:00]}  d5 {[%clk 0:03:00]} 2. c4 {[%clk 0:03:01]}  c6 {[%clk 0:03:00]} 3. cxd5 {[%clk 0:02:59]}  cxd5 {[%clk 0:03:01]} 4. Bf4 {[%clk 0:02:57]}  Nf6 {[%clk 0:03:01]} 5. e3 {[%clk 0:02:56]}  Nc6 {[%clk 0:03:02]} 6. Nc3 {[%clk 0:02:56]}  Bg4 {[%clk 0:03:02]} 7. Qb3 {[%clk 0:02:54]}  Na5 {[%clk 0:03:02]} 8. Bb5+ {[%clk 0:02:52]}  Bd7 {[%clk 0:03:02]} 9. Qa4 {[%clk 0:02:46]}  Nc6 {[%clk 0:03:01]} 10. Qc2 {[%clk 0:02:23]}  Rc8 {[%clk 0:02:47]} 11. Nf3 {[%clk 0:02:20]}  e6 {[%clk 0:02:43]} 12. O-O {[%clk 0:02:18]}  Be7 {[%clk 0:02:43]} 13. Rac1 {[%clk 0:02:14]}  O-O {[%clk 0:02:42]} 14. Qe2 {[%clk 0:02:10]}  Qb6 {[%clk 0:01:57]} 15. Bd3 {[%clk 0:02:05]}  Rfd8 {[%clk 0:01:54]} 16. Ne5 {[%clk 0:01:57]}  Be8 {[%clk 0:01:54]} 17. h3 {[%clk 0:01:53]}  Nxe5 {[%clk 0:01:43]} 18. Bxe5 {[%clk 0:01:53]}  Nd7 {[%clk 0:01:43]} 19. Bg3 {[%clk 0:01:51]}  Nf8 {[%clk 0:01:42]} 20. Rc2 {[%clk 0:01:50]}  Bd6 {[%clk 0:01:40]} 21. Bxd6 {[%clk 0:01:42]}  Qxd6 {[%clk 0:01:41]} 22. Rfc1 {[%clk 0:01:42]}  g6 {[%clk 0:01:33]} 23. g3 {[%clk 0:01:33]}  a6 {[%clk 0:01:28]} 24. Kg2 {[%clk 0:01:32]}  Rc6 {[%clk 0:01:19]} 25. Qd2 {[%clk 0:01:29]}  Rdc8 {[%clk 0:01:18]} 26. Ne2 {[%clk 0:01:29]}  Rxc2 {[%clk 0:01:14]} 27. Rxc2 {[%clk 0:01:30]}  Rxc2 {[%clk 0:01:14]} 28. Qxc2 {[%clk 0:01:30]}  Bc6 {[%clk 0:01:15]} 29. a3 {[%clk 0:01:26]}  Nd7 {[%clk 0:01:15]} 30. Qc3 {[%clk 0:01:25]}  e5 {[%clk 0:01:14]} 31. b4 {[%clk 0:01:24]}  h5 {[%clk 0:01:11]} 32. h4 {[%clk 0:01:22]}  Qf6 {[%clk 0:01:11]} 33. dxe5 {[%clk 0:01:09]}  d4+ {[%clk 0:00:49]} 34. e4 {[%clk 0:01:09]}  Nxe5 {[%clk 0:00:22]} 35. Nxd4 {[%clk 0:01:06]}  Nf3 {[%clk 0:00:16]} 36. Ne2 {[%clk 0:00:07]}  Qxc3 {[%clk 0:00:16]} 37. Nxc3 {[%clk 0:00:07]}  Ne1+ {[%clk 0:00:17]} 38. Kf1 {[%clk 0:00:08]}  Nxd3 {[%clk 0:00:18]} 39. Ke2 {[%clk 0:00:09]}  Ne5 {[%clk 0:00:17]} 40. a4 {[%clk 0:00:09]}  f6 {[%clk 0:00:12]} 41. b5 {[%clk 0:00:07]}  axb5 {[%clk 0:00:12]} 42. axb5 {[%clk 0:00:08]}  Bd7 {[%clk 0:00:13]} 43. Ke3 {[%clk 0:00:09]}  Kf7 {[%clk 0:00:12]} 44. Kd4 {[%clk 0:00:09]}  g5 {[%clk 0:00:06]} 45. hxg5 {[%clk 0:00:09]}  Nf3+ {[%clk 0:00:05]} 46. Kc5 {[%clk 0:00:09]}  fxg5 {[%clk 0:00:06]} 47. Nd1 {[%clk 0:00:02]}  h4 {[%clk 0:00:06]} 48. gxh4 {[%clk 0:00:03]}  gxh4 {[%clk 0:00:07]} 49. Ne3 {[%clk 0:00:03]}  h3 {[%clk 0:00:07]} 50. Nf1 {[%clk 0:00:04]}  Ne5 {[%clk 0:00:08]} 51. Nh2 {[%clk 0:00:02]}  Nd3+ {[%clk 0:00:08]} 52. Kb6 {[%clk 0:00:03]}  Nxf2 {[%clk 0:00:08]} 53. Kxb7 {[%clk 0:00:04]}  Bxb5 {[%clk 0:00:09]} 54. Kc7 {[%clk 0:00:04]}  Ke6 {[%clk 0:00:09]} 55. Kb6 {[%clk 0:00:04]}  Be2 {[%clk 0:00:09]} 56. Kc5 {[%clk 0:00:05]}  Ke5 {[%clk 0:00:09]} 0-1


[Site "https://www.chess.com"]

[Event "Titled Tuesday Blitz March 29 Early 2022"]
[White "Petrova, Irina"]
[Black "Biletskiy, Danylo"]
[WhiteFideId "14124122"]
[BlackFideId "14155419"]
[WhiteElo "1993"]
[BlackElo "2087"]
[Result "0-1"]
[Round "08"]
[TimeControl "180+1"]
[Date "2022.03.30"]
[WhiteClock "0:00:02"]
[BlackClock "0:00:12"]

1. e4 {[%clk 0:03:00]}  d5 {[%clk 0:02:56]} 2. exd5 {[%clk 0:03:00]}  Nf6 {[%clk 0:02:57]} 3. Nc3 {[%clk 0:02:57]}  Nxd5 {[%clk 0:02:56]} 4. Nf3 {[%clk 0:02:53]}  Nc6 {[%clk 0:02:51]} 5. Be2 {[%clk 0:02:47]}  g6 {[%clk 0:02:51]} 6. Nxd5 {[%clk 0:02:41]}  Qxd5 {[%clk 0:02:50]} 7. d4 {[%clk 0:02:41]}  Bg7 {[%clk 0:02:50]} 8. c3 {[%clk 0:02:40]}  O-O {[%clk 0:02:49]} 9. O-O {[%clk 0:02:40]}  Bf5 {[%clk 0:02:46]} 10. Bf4 {[%clk 0:02:35]}  Rac8 {[%clk 0:02:45]} 11. Qb3 {[%clk 0:02:24]}  Rfd8 {[%clk 0:02:33]} 12. Bc4 {[%clk 0:02:21]}  Qe4 {[%clk 0:02:25]} 13. Bxf7+ {[%clk 0:02:15]}  Kh8 {[%clk 0:02:25]} 14. Bg3 {[%clk 0:02:04]}  e6 {[%clk 0:01:38]} 15. Ng5 {[%clk 0:01:59]}  Qd5 {[%clk 0:01:34]} 16. Bxe6 {[%clk 0:01:51]}  Bxe6 {[%clk 0:01:30]} 17. Nxe6 {[%clk 0:01:49]}  Qxb3 {[%clk 0:01:26]} 18. axb3 {[%clk 0:01:50]}  Rd7 {[%clk 0:01:27]} 19. Nxg7 {[%clk 0:01:44]}  Kxg7 {[%clk 0:01:27]} 20. Rfe1 {[%clk 0:01:43]}  a6 {[%clk 0:01:26]} 21. Be5+ {[%clk 0:01:38]}  Kf7 {[%clk 0:01:26]} 22. f4 {[%clk 0:01:37]}  Ne7 {[%clk 0:01:24]} 23. g4 {[%clk 0:01:33]}  c5 {[%clk 0:01:24]} 24. Kg2 {[%clk 0:01:28]}  Nd5 {[%clk 0:01:16]} 25. Kf3 {[%clk 0:01:25]}  cxd4 {[%clk 0:01:09]} 26. Bxd4 {[%clk 0:01:23]}  Nb4 {[%clk 0:01:02]} 27. Re2 {[%clk 0:00:52]}  Nc6 {[%clk 0:01:00]} 28. Bc5 {[%clk 0:00:35]}  Rd3+ {[%clk 0:00:54]} 29. Re3 {[%clk 0:00:25]}  Rd2 {[%clk 0:00:54]} 30. Re2 {[%clk 0:00:20]}  Rd3+ {[%clk 0:00:54]} 31. Re3 {[%clk 0:00:12]}  Rd2 {[%clk 0:00:54]} 32. Ba3 {[%clk 0:00:12]}  a5 {[%clk 0:00:36]} 33. Rae1 {[%clk 0:00:11]}  b5 {[%clk 0:00:34]} 34. Bc5 {[%clk 0:00:09]}  Rxb2 {[%clk 0:00:33]} 35. b4 {[%clk 0:00:09]}  axb4 {[%clk 0:00:33]} 36. cxb4 {[%clk 0:00:10]}  Rxh2 {[%clk 0:00:26]} 37. g5 {[%clk 0:00:10]}  Rh3+ {[%clk 0:00:26]} 38. Kg4 {[%clk 0:00:09]}  Rxe3 {[%clk 0:00:26]} 39. Rxe3 {[%clk 0:00:10]}  Rc7 {[%clk 0:00:26]} 40. f5 {[%clk 0:00:09]}  gxf5+ {[%clk 0:00:26]} 41. Kxf5 {[%clk 0:00:10]}  Nd8 {[%clk 0:00:23]} 42. Ra3 {[%clk 0:00:08]}  Ne6 {[%clk 0:00:21]} 43. Be3 {[%clk 0:00:06]}  Ng7+ {[%clk 0:00:20]} 44. Kg4 {[%clk 0:00:04]}  Rc4+ {[%clk 0:00:19]} 45. Kf3 {[%clk 0:00:04]}  Rxb4 {[%clk 0:00:17]} 46. Ra7+ {[%clk 0:00:04]}  Kg6 {[%clk 0:00:15]} 47. Ra6+ {[%clk 0:00:03]}  Kf5 {[%clk 0:00:14]} 48. Rf6+ {[%clk 0:00:03]}  Ke5 {[%clk 0:00:14]} 49. Rf7 {[%clk 0:00:02]}  Nf5 {[%clk 0:00:12]} 0-1


[Site "https://www.chess.com"]

[Event "Titled Tuesday Blitz March 29 Early 2022"]
[White "Piesik, Piotr"]
[Black "FGHSMN"]
[WhiteFideId "1136194"]
[WhiteElo "2190"]
[BlackElo "2768"]
[Result "1-0"]
[Round "08"]
[TimeControl "180+1"]
[Date "2022.03.29"]
[WhiteClock "0:00:20"]
[BlackClock "0:00:18"]

1. Nf3 {[%clk 0:03:00]}  d5 {[%clk 0:02:58]} 2. g3 {[%clk 0:02:59]}  g6 {[%clk 0:02:58]} 3. Bg2 {[%clk 0:03:00]}  Bg7 {[%clk 0:02:59]} 4. d4 {[%clk 0:03:00]}  c6 {[%clk 0:02:58]} 5. O-O {[%clk 0:03:01]}  Nf6 {[%clk 0:02:59]} 6. c4 {[%clk 0:03:01]}  dxc4 {[%clk 0:02:58]} 7. Na3 {[%clk 0:02:59]}  b5 {[%clk 0:02:58]} 8. b3 {[%clk 0:02:57]}  cxb3 {[%clk 0:02:57]} 9. Qxb3 {[%clk 0:02:57]}  O-O {[%clk 0:02:52]} 10. Bb2 {[%clk 0:02:54]}  a6 {[%clk 0:02:51]} 11. Ne5 {[%clk 0:02:53]}  Bb7 {[%clk 0:02:50]} 12. Rfd1 {[%clk 0:02:47]}  Nbd7 {[%clk 0:02:40]} 13. Nxc6 {[%clk 0:02:46]}  Bxc6 {[%clk 0:02:38]} 14. Bxc6 {[%clk 0:02:47]}  Rb8 {[%clk 0:02:34]} 15. Nc2 {[%clk 0:02:43]}  Nb6 {[%clk 0:02:34]} 16. Rac1 {[%clk 0:02:34]}  Nc4 {[%clk 0:02:32]} 17. Bg2 {[%clk 0:02:31]}  Nxb2 {[%clk 0:02:25]} 18. Qxb2 {[%clk 0:02:32]}  Qd6 {[%clk 0:02:25]} 19. Qb4 {[%clk 0:02:30]}  Qe6 {[%clk 0:02:22]} 20. Ne3 {[%clk 0:02:14]}  Qxa2 {[%clk 0:02:19]} 21. Rd2 {[%clk 0:02:05]}  Qa4 {[%clk 0:02:15]} 22. Qxa4 {[%clk 0:02:03]}  bxa4 {[%clk 0:02:15]} 23. Ra2 {[%clk 0:02:02]}  Rb4 {[%clk 0:02:13]} 24. Bc6 {[%clk 0:01:56]}  Rxd4 {[%clk 0:02:10]} 25. Rc4 {[%clk 0:01:54]}  Rxc4 {[%clk 0:02:01]} 26. Nxc4 {[%clk 0:01:55]}  Rc8 {[%clk 0:02:00]} 27. Na5 {[%clk 0:01:55]}  Ne8 {[%clk 0:01:53]} 28. Rxa4 {[%clk 0:01:53]}  Nc7 {[%clk 0:01:52]} 29. Bb7 {[%clk 0:01:50]}  Rd8 {[%clk 0:01:50]} 30. Nc6 {[%clk 0:01:46]}  Rd6 {[%clk 0:01:31]} 31. Nxe7+ {[%clk 0:01:42]}  Kf8 {[%clk 0:01:32]} 32. Nc8 {[%clk 0:01:43]}  Re6 {[%clk 0:01:30]} 33. e3 {[%clk 0:01:40]}  Ke8 {[%clk 0:01:28]} 34. Na7 {[%clk 0:01:32]}  Kd7 {[%clk 0:01:27]} 35. Bc8+ {[%clk 0:01:32]}  Kd6 {[%clk 0:01:25]} 36. Bxe6 {[%clk 0:01:33]}  Kxe6 {[%clk 0:01:25]} 37. Nc6 {[%clk 0:01:31]}  Bf8 {[%clk 0:01:18]} 38. Nb8 {[%clk 0:01:28]}  Bd6 {[%clk 0:01:15]} 39. Nxa6 {[%clk 0:01:28]}  Nd5 {[%clk 0:01:16]} 40. Rc4 {[%clk 0:01:25]}  h5 {[%clk 0:01:09]} 41. Nc5+ {[%clk 0:01:24]}  Ke7 {[%clk 0:01:09]} 42. Ne4 {[%clk 0:01:22]}  Ba3 {[%clk 0:01:09]} 43. Kg2 {[%clk 0:01:19]}  Bb2 {[%clk 0:01:06]} 44. Ra4 {[%clk 0:01:16]}  Kf8 {[%clk 0:01:04]} 45. Ra7 {[%clk 0:01:12]}  Ne7 {[%clk 0:01:03]} 46. Nd6 {[%clk 0:01:06]}  Be5 {[%clk 0:01:00]} 47. Nc4 {[%clk 0:01:03]}  Bf6 {[%clk 0:00:59]} 48. h3 {[%clk 0:00:57]}  Nf5 {[%clk 0:00:53]} 49. Ra6 {[%clk 0:00:53]}  Bc3 {[%clk 0:00:51]} 50. Nd6 {[%clk 0:00:52]}  Ne7 {[%clk 0:00:50]} 51. Ra8+ {[%clk 0:00:50]}  Kg7 {[%clk 0:00:50]} 52. Ne8+ {[%clk 0:00:50]}  Kf8 {[%clk 0:00:47]} 53. Nc7+ {[%clk 0:00:44]}  Kg7 {[%clk 0:00:47]} 54. Nb5 {[%clk 0:00:44]}  Bf6 {[%clk 0:00:45]} 55. f4 {[%clk 0:00:40]}  g5 {[%clk 0:00:36]} 56. Nd6 {[%clk 0:00:37]}  Bc3 {[%clk 0:00:32]} 57. Ne4 {[%clk 0:00:34]}  Bb2 {[%clk 0:00:30]} 58. Nxg5 {[%clk 0:00:34]}  Nf5 {[%clk 0:00:30]} 59. Kf3 {[%clk 0:00:31]}  Bc1 {[%clk 0:00:30]} 60. Ra7 {[%clk 0:00:30]}  Nxe3 {[%clk 0:00:28]} 61. Rxf7+ {[%clk 0:00:29]}  Kg6 {[%clk 0:00:29]} 62. Rc7 {[%clk 0:00:27]}  Bd2 {[%clk 0:00:29]} 63. Ne4 {[%clk 0:00:26]}  Nf1 {[%clk 0:00:30]} 64. Rc6+ {[%clk 0:00:23]}  Kf7 {[%clk 0:00:29]} 65. Rc2 {[%clk 0:00:21]}  Ba5 {[%clk 0:00:21]} 66. Rf2 {[%clk 0:00:21]}  Nxg3 {[%clk 0:00:16]} 67. Nxg3 {[%clk 0:00:20]}  Kg6 {[%clk 0:00:17]} 68. Rc2 {[%clk 0:00:20]}  Bc7 {[%clk 0:00:18]} 69. Rxc7 {[%clk 0:00:20]} 1-0


[Site "https://www.chess.com"]

[Event "Titled Tuesday Blitz March 29 Early 2022"]
[White "Rastbod, Ali"]
[Black "Shuvalov, Evgenij"]
[WhiteFideId "12567477"]
[BlackFideId "4187237"]
[WhiteElo "2660"]
[BlackElo "2489"]
[Result "1-0"]
[Round "08"]
[TimeControl "180+1"]
[Date "2022.03.30"]
[WhiteClock "0:02:15"]
[BlackClock "0:01:18"]

1. e4 {[%clk 0:03:00]}  e6 {[%clk 0:02:59]} 2. d4 {[%clk 0:02:56]}  d5 {[%clk 0:02:59]} 3. Nc3 {[%clk 0:02:57]}  Bb4 {[%clk 0:02:59]} 4. exd5 {[%clk 0:02:56]}  exd5 {[%clk 0:02:59]} 5. Bd3 {[%clk 0:02:56]}  Nc6 {[%clk 0:02:58]} 6. Nf3 {[%clk 0:02:56]}  Bg4 {[%clk 0:02:57]} 7. O-O {[%clk 0:02:57]}  Nxd4 {[%clk 0:02:58]} 8. Qe1+ {[%clk 0:02:57]}  Ne6 {[%clk 0:02:52]} 9. Ne5 {[%clk 0:02:57]}  d4 {[%clk 0:02:45]} 10. a3 {[%clk 0:02:48]}  Bd6 {[%clk 0:02:35]} 11. Nd5 {[%clk 0:02:22]}  Nf6 {[%clk 0:01:58]} 12. Nxf6+ {[%clk 0:02:21]}  gxf6 {[%clk 0:01:53]} 13. Nxg4 {[%clk 0:02:21]}  h5 {[%clk 0:01:53]} 14. Nh6 {[%clk 0:02:21]}  Kf8 {[%clk 0:01:35]} 15. Nf5 {[%clk 0:02:21]}  Bf4 {[%clk 0:01:32]} 16. Bxf4 {[%clk 0:02:20]}  Nxf4 {[%clk 0:01:33]} 17. Qb4+ {[%clk 0:02:19]}  Kg8 {[%clk 0:01:29]} 18. Qxd4 {[%clk 0:02:18]}  Qxd4 {[%clk 0:01:22]} 19. Nxd4 {[%clk 0:02:19]}  Nxd3 {[%clk 0:01:23]} 20. cxd3 {[%clk 0:02:19]}  Rd8 {[%clk 0:01:23]} 21. Nb5 {[%clk 0:02:18]}  c6 {[%clk 0:01:23]} 22. Nc3 {[%clk 0:02:17]}  Rxd3 {[%clk 0:01:22]} 23. Rad1 {[%clk 0:02:17]}  Rxd1 {[%clk 0:01:20]} 24. Rxd1 {[%clk 0:02:18]}  Kg7 {[%clk 0:01:21]} 25. Rd7 {[%clk 0:02:17]}  Rb8 {[%clk 0:01:21]} 26. f3 {[%clk 0:02:16]}  Kf8 {[%clk 0:01:20]} 27. Ne4 {[%clk 0:02:15]}  Kg7 {[%clk 0:01:18]} 28. Nd6 {[%clk 0:02:15]} 1-0


[Site "https://www.chess.com"]

[Event "Titled Tuesday Blitz March 29 Early 2022"]
[White "Ravi, Teja S."]
[Black "Vestby-Ellingsen, Mads"]
[WhiteFideId "5017220"]
[BlackFideId "1520857"]
[WhiteElo "2412"]
[BlackElo "2232"]
[Result "1-0"]
[Round "08"]
[TimeControl "180+1"]
[Date "2022.03.30"]
[WhiteClock "0:00:57"]
[BlackClock "0:00:02"]

1. e4 {[%clk 0:03:00]}  e6 {[%clk 0:02:58]} 2. d4 {[%clk 0:02:59]}  d5 {[%clk 0:02:58]} 3. Bd3 {[%clk 0:03:00]}  c5 {[%clk 0:02:55]} 4. exd5 {[%clk 0:03:00]}  exd5 {[%clk 0:02:55]} 5. Nf3 {[%clk 0:02:59]}  c4 {[%clk 0:02:55]} 6. Be2 {[%clk 0:02:59]}  Bd6 {[%clk 0:02:55]} 7. O-O {[%clk 0:02:58]}  Ne7 {[%clk 0:02:53]} 8. b3 {[%clk 0:02:58]}  cxb3 {[%clk 0:02:53]} 9. axb3 {[%clk 0:02:59]}  O-O {[%clk 0:02:53]} 10. c4 {[%clk 0:02:59]}  Nbc6 {[%clk 0:02:53]} 11. c5 {[%clk 0:02:58]}  Bc7 {[%clk 0:02:48]} 12. Bg5 {[%clk 0:02:54]}  f6 {[%clk 0:02:45]} 13. Bh4 {[%clk 0:02:53]}  Nf5 {[%clk 0:02:45]} 14. Bg3 {[%clk 0:02:54]}  Bxg3 {[%clk 0:02:38]} 15. hxg3 {[%clk 0:02:55]}  b6 {[%clk 0:02:30]} 16. Nc3 {[%clk 0:02:40]}  bxc5 {[%clk 0:02:18]} 17. dxc5 {[%clk 0:02:41]}  Be6 {[%clk 0:02:18]} 18. Nb5 {[%clk 0:02:20]}  Bf7 {[%clk 0:01:43]} 19. g4 {[%clk 0:01:56]}  Nh6 {[%clk 0:01:37]} 20. Nfd4 {[%clk 0:01:55]}  Nxd4 {[%clk 0:01:29]} 21. Nxd4 {[%clk 0:01:53]}  a5 {[%clk 0:01:17]} 22. Bf3 {[%clk 0:01:45]}  Qc7 {[%clk 0:01:04]} 23. c6 {[%clk 0:01:41]}  Rab8 {[%clk 0:00:59]} 24. Ra4 {[%clk 0:01:31]}  Rfe8 {[%clk 0:00:40]} 25. Qd3 {[%clk 0:01:28]}  Kh8 {[%clk 0:00:40]} 26. Rc1 {[%clk 0:01:24]}  Bg6 {[%clk 0:00:31]} 27. Qd2 {[%clk 0:01:23]}  Be4 {[%clk 0:00:28]} 28. Qxa5 {[%clk 0:01:16]}  Qf4 {[%clk 0:00:26]} 29. Ne2 {[%clk 0:01:13]}  Qd6 {[%clk 0:00:16]} 30. c7 {[%clk 0:01:12]}  Bxf3 {[%clk 0:00:11]} 31. cxb8=Q {[%clk 0:01:10]}  Qxb8 {[%clk 0:00:10]} 32. gxf3 {[%clk 0:01:09]}  Rxe2 {[%clk 0:00:09]} 33. Qa8 {[%clk 0:01:00]}  Re8 {[%clk 0:00:09]} 34. Qxb8 {[%clk 0:01:00]}  Rxb8 {[%clk 0:00:10]} 35. Rca1 {[%clk 0:00:58]}  Ng8 {[%clk 0:00:02]} 36. Ra8 {[%clk 0:00:59]}  Rxb3 {[%clk 0:00:02]} 37. Rc1 {[%clk 0:00:59]}  h6 {[%clk 0:00:01]} 38. Rcc8 {[%clk 0:01:00]}  Kh7 {[%clk 0:00:01]} 39. Rxg8 {[%clk 0:01:00]}  Rxf3 {[%clk 0:00:02]} 40. Rgd8 {[%clk 0:00:59]}  Rf4 {[%clk 0:00:01]} 41. Rxd5 {[%clk 0:00:58]}  Rxg4+ {[%clk 0:00:02]} 42. Kh2 {[%clk 0:00:58]}  Rg6 {[%clk 0:00:02]} 43. Rd7 {[%clk 0:00:56]}  Rg5 {[%clk 0:00:02]} 44. Ra3 {[%clk 0:00:57]}  Rg4 {[%clk 0:00:02]} 45. Rg3 {[%clk 0:00:57]}  Rxg3 {[%clk 0:00:01]} 46. fxg3 {[%clk 0:00:57]}  h5 {[%clk 0:00:01]} 47. Kg2 {[%clk 0:00:56]}  Kh6 {[%clk 0:00:01]} 48. Kf3 {[%clk 0:00:56]}  g6 {[%clk 0:00:01]} 49. Kf4 {[%clk 0:00:57]}  g5+ {[%clk 0:00:01]} 50. Kf5 {[%clk 0:00:57]}  h4 {[%clk 0:00:02]} 51. g4 {[%clk 0:00:56]}  h3 {[%clk 0:00:01]} 52. Kxf6 {[%clk 0:00:55]}  h2 {[%clk 0:00:02]} 53. Rd1 {[%clk 0:00:56]}  Kh7 {[%clk 0:00:02]} 54. Rh1 {[%clk 0:00:56]}  Kh6 {[%clk 0:00:02]} 55. Rxh2# {[%clk 0:00:57]} 1-0


[Site "https://www.chess.com"]

[Event "Titled Tuesday Blitz March 29 Early 2022"]
[White "Sahil, Tickoo"]
[Black "Koridze, Lile"]
[WhiteFideId "5019710"]
[BlackFideId "13612514"]
[WhiteElo "2099"]
[BlackElo "1999"]
[Result "0-1"]
[Round "08"]
[TimeControl "180+1"]
[Date "2022.03.30"]
[WhiteClock "0:00:09"]
[BlackClock "0:02:01"]

1. d4 {[%clk 0:03:00]}  Nf6 {[%clk 0:02:59]} 2. Bf4 {[%clk 0:03:00]}  d5 {[%clk 0:03:00]} 3. e3 {[%clk 0:03:01]}  e6 {[%clk 0:03:00]} 4. Nd2 {[%clk 0:03:00]}  Bd6 {[%clk 0:03:00]} 5. Bg3 {[%clk 0:03:01]}  O-O {[%clk 0:03:00]} 6. Ngf3 {[%clk 0:03:00]}  c5 {[%clk 0:03:00]} 7. c3 {[%clk 0:03:01]}  Nc6 {[%clk 0:03:00]} 8. Bd3 {[%clk 0:03:00]}  b6 {[%clk 0:03:01]} 9. e4 {[%clk 0:02:57]}  dxe4 {[%clk 0:03:01]} 10. Nxe4 {[%clk 0:02:57]}  Nxe4 {[%clk 0:03:01]} 11. Bxe4 {[%clk 0:02:57]}  Bb7 {[%clk 0:03:01]} 12. dxc5 {[%clk 0:02:57]}  Bxc5 {[%clk 0:02:59]} 13. Qe2 {[%clk 0:02:53]}  h6 {[%clk 0:02:45]} 14. Rd1 {[%clk 0:02:47]}  Qe7 {[%clk 0:02:45]} 15. b4 {[%clk 0:02:11]}  Nxb4 {[%clk 0:02:42]} 16. Bxb7 {[%clk 0:02:01]}  Qxb7 {[%clk 0:02:42]} 17. cxb4 {[%clk 0:02:00]}  Bxb4+ {[%clk 0:02:43]} 18. Kf1 {[%clk 0:02:00]}  Rfd8 {[%clk 0:02:43]} 19. Rb1 {[%clk 0:01:54]}  a5 {[%clk 0:02:41]} 20. h3 {[%clk 0:01:50]}  Qd5 {[%clk 0:02:39]} 21. Kg1 {[%clk 0:01:48]}  Rac8 {[%clk 0:02:35]} 22. Kh2 {[%clk 0:01:46]}  Qh5 {[%clk 0:02:34]} 23. Rhd1 {[%clk 0:01:42]}  Qg6 {[%clk 0:02:33]} 24. Rxd8+ {[%clk 0:01:39]}  Rxd8 {[%clk 0:02:33]} 25. Rd1 {[%clk 0:01:35]}  Rc8 {[%clk 0:02:32]} 26. Ne5 {[%clk 0:00:53]}  Qf5 {[%clk 0:02:29]} 27. Rd7 {[%clk 0:00:39]}  Rc2 {[%clk 0:02:22]} 28. Qe3 {[%clk 0:00:20]}  Bc5 {[%clk 0:02:19]} 29. Qb3 {[%clk 0:00:17]}  Bxf2 {[%clk 0:02:16]} 30. Bxf2 {[%clk 0:00:14]}  Qxe5+ {[%clk 0:02:02]} 31. Bg3 {[%clk 0:00:12]}  Qe2 {[%clk 0:02:02]} 32. Rd8+ {[%clk 0:00:09]}  Kh7 {[%clk 0:02:01]} 0-1


[Site "https://www.chess.com"]

[Event "Titled Tuesday Blitz March 29 Early 2022"]
[White "Sanal, Vahap"]
[Black "Pranav, V"]
[WhiteFideId "6300545"]
[BlackFideId "25060783"]
[WhiteElo "2603"]
[BlackElo "2349"]
[Result "1-0"]
[Round "08"]
[TimeControl "180+1"]
[Date "2022.03.29"]
[WhiteClock "0:00:18"]
[BlackClock "0:00:01"]

1. e4 {[%clk 0:03:00]}  e5 {[%clk 0:02:59]} 2. Nf3 {[%clk 0:02:58]}  Nc6 {[%clk 0:03:00]} 3. Bb5 {[%clk 0:02:58]}  a6 {[%clk 0:03:00]} 4. Ba4 {[%clk 0:02:58]}  Nf6 {[%clk 0:03:00]} 5. d3 {[%clk 0:02:59]}  d6 {[%clk 0:03:00]} 6. O-O {[%clk 0:02:58]}  g6 {[%clk 0:03:01]} 7. c3 {[%clk 0:02:58]}  Bg7 {[%clk 0:03:01]} 8. Re1 {[%clk 0:02:57]}  O-O {[%clk 0:03:01]} 9. Be3 {[%clk 0:02:58]}  h6 {[%clk 0:02:59]} 10. h3 {[%clk 0:02:58]}  Kh8 {[%clk 0:02:51]} 11. Nbd2 {[%clk 0:02:57]}  Ng8 {[%clk 0:02:51]} 12. d4 {[%clk 0:02:56]}  f5 {[%clk 0:02:48]} 13. dxe5 {[%clk 0:02:54]}  f4 {[%clk 0:02:35]} 14. Bd4 {[%clk 0:02:54]}  dxe5 {[%clk 0:02:17]} 15. Bc5 {[%clk 0:02:54]}  Re8 {[%clk 0:02:16]} 16. Bxc6 {[%clk 0:02:49]}  bxc6 {[%clk 0:02:16]} 17. Nc4 {[%clk 0:02:48]}  Qf6 {[%clk 0:02:09]} 18. Qa4 {[%clk 0:02:44]}  a5 {[%clk 0:02:06]} 19. Rad1 {[%clk 0:02:39]}  Ba6 {[%clk 0:01:38]} 20. Ncxe5 {[%clk 0:02:32]}  Rxe5 {[%clk 0:01:35]} 21. Bd4 {[%clk 0:02:11]}  Bb5 {[%clk 0:01:34]} 22. Qc2 {[%clk 0:02:11]}  Qe6 {[%clk 0:01:31]} 23. Nxe5 {[%clk 0:02:09]}  Bxe5 {[%clk 0:01:31]} 24. c4 {[%clk 0:02:07]}  Ba6 {[%clk 0:01:22]} 25. Qc3 {[%clk 0:02:06]}  Bxd4 {[%clk 0:01:12]} 26. Qxd4+ {[%clk 0:02:06]}  Nf6 {[%clk 0:01:07]} 27. b3 {[%clk 0:02:05]}  Re8 {[%clk 0:01:01]} 28. f3 {[%clk 0:01:57]}  Bc8 {[%clk 0:00:52]} 29. Qd2 {[%clk 0:01:51]}  Qe5 {[%clk 0:00:51]} 30. Qd4 {[%clk 0:01:51]}  Qg5 {[%clk 0:00:33]} 31. Kf1 {[%clk 0:01:49]}  Kg8 {[%clk 0:00:32]} 32. Rd2 {[%clk 0:01:42]}  Nh5 {[%clk 0:00:31]} 33. Qf2 {[%clk 0:01:23]}  Kf7 {[%clk 0:00:20]} 34. Red1 {[%clk 0:01:20]}  Ng3+ {[%clk 0:00:17]} 35. Kg1 {[%clk 0:01:17]}  Bxh3 {[%clk 0:00:17]} 36. gxh3 {[%clk 0:00:57]}  Nxe4+ {[%clk 0:00:17]} 37. Qg2 {[%clk 0:00:58]}  Nxd2 {[%clk 0:00:17]} 38. Rxd2 {[%clk 0:00:56]}  Re1+ {[%clk 0:00:16]} 39. Kh2 {[%clk 0:00:56]}  Qxg2+ {[%clk 0:00:15]} 40. Kxg2 {[%clk 0:00:57]}  Kf6 {[%clk 0:00:16]} 41. Rd7 {[%clk 0:00:54]}  Re2+ {[%clk 0:00:15]} 42. Kg1 {[%clk 0:00:55]}  Kg5 {[%clk 0:00:09]} 43. Rxc7 {[%clk 0:00:55]}  Kh4 {[%clk 0:00:06]} 44. Rxc6 {[%clk 0:00:56]}  g5 {[%clk 0:00:07]} 45. Kf1 {[%clk 0:00:53]}  Rxa2 {[%clk 0:00:06]} 46. Rxh6+ {[%clk 0:00:49]}  Kg3 {[%clk 0:00:06]} 47. Rg6 {[%clk 0:00:49]}  Kxf3 {[%clk 0:00:07]} 48. Ke1 {[%clk 0:00:50]}  Ke3 {[%clk 0:00:04]} 49. Re6+ {[%clk 0:00:50]}  Kd4 {[%clk 0:00:03]} 50. Rg6 {[%clk 0:00:49]}  Rg2 {[%clk 0:00:03]} 51. Ra6 {[%clk 0:00:43]}  Rg3 {[%clk 0:00:02]} 52. Rxa5 {[%clk 0:00:42]}  Ke3 {[%clk 0:00:03]} 53. Re5+ {[%clk 0:00:38]}  Kd4 {[%clk 0:00:03]} 54. Rd5+ {[%clk 0:00:38]}  Ke4 {[%clk 0:00:04]} 55. b4 {[%clk 0:00:36]}  Rxh3 {[%clk 0:00:02]} 56. Rxg5 {[%clk 0:00:36]}  Rh1+ {[%clk 0:00:02]} 57. Kd2 {[%clk 0:00:36]}  Rh2+ {[%clk 0:00:03]} 58. Kc3 {[%clk 0:00:35]}  f3 {[%clk 0:00:03]} 59. Rg1 {[%clk 0:00:32]}  Ke3 {[%clk 0:00:02]} 60. b5 {[%clk 0:00:28]}  Rg2 {[%clk 0:00:02]} 61. Re1+ {[%clk 0:00:26]}  Re2 {[%clk 0:00:02]} 62. Rh1 {[%clk 0:00:24]}  f2 {[%clk 0:00:01]} 63. Rf1 {[%clk 0:00:20]}  Ke4 {[%clk 0:00:01]} 64. b6 {[%clk 0:00:19]}  Kf3 {[%clk 0:00:02]} 65. c5 {[%clk 0:00:18]}  Re3+ {[%clk 0:00:01]} 66. Kc4 {[%clk 0:00:18]}  Re1 {[%clk 0:00:01]} 67. Rxf2+ {[%clk 0:00:18]}  Kxf2 {[%clk 0:00:02]} 68. b7 {[%clk 0:00:19]}  Ra1 {[%clk 0:00:01]} 69. b8=Q {[%clk 0:00:18]} 1-0


[Site "https://www.chess.com"]